fUSD/lending_fUSD_20260327
["ID","MTS","AMOUNT","RATE_DAILY","PERIOD"]
[418938743,1774602637716,-375.19890095,9.72e-05,2]
[418938744,1774602637726,-500.0,9.72e-05,2]
[418938745,1774602637735,-477.07066286,9.72e-05,2]
[418938746,1774602637745,-152.33,0.0001215,2]
[418938747,1774602637758,-3074.0649771,0.00012788,2]
[418938748,1774602638086,-939.1884944,0.00012788,2]
[418938750,1774602638098,-500.0,0.00012873,2]
[418938751,1774602638107,-500.0,0.00012877,2]
[418938752,1774602638118,-500.0,0.00012877,2]
[418938753,1774602638127,-500.0,0.00012877,2]
[418938754,1774602638139,-102.12077956,0.00012877,2]
[418938755,1774602640453,-397.87922044,0.00012877,2]
[418938756,1774602640463,-500.0,0.00012877,2]
[418938757,1774602640472,-500.0,0.00012877,2]
[418938758,1774602640481,-500.0,0.00012877,2]
[418938759,1774602640491,-500.0,0.00012877,2]
[418938760,1774602640500,-500.0,0.00012877,2]
[418938761,1774602640510,-500.0,0.00012877,2]
[418938762,1774602640519,-500.0,0.00012877,2]
[418938763,1774602640528,-500.0,0.00012877,2]
[418938764,1774602640538,-500.0,0.00012877,2]
[418938765,1774602640547,-500.0,0.00012877,2]
[418938766,1774602640556,-346.35110232,0.00012877,2]
[418938767,1774602640565,-500.0,0.00012877,2]
[418938768,1774602640574,-500.0,0.00012877,2]
[418938769,1774602640583,-500.0,0.00012877,2]
[418938770,1774602640592,-500.0,0.00012877,2]
[418938771,1774602640602,-500.0,0.00012877,2]
[418938772,1774602640611,-500.0,0.00012877,2]
[418938773,1774602640620,-500.0,0.00012877,2]
[418938774,1774602640629,-500.0,0.00012877,2]
[418938775,1774602640638,-17590.50338759,0.00012878,2]
[418938776,1774602640650,-241839.67526711,0.00012878,2]
[418938777,1774602640819,-1260.24265544,0.00012878,2]
[418938789,1774602645791,-2680.62586737,0.00012878,2]
[418938803,1774602650021,-5933.34597606,0.00012878,2]
[418938822,1774603838110,-330.46,0.00011507,2]
[418938823,1774603838119,-250.0,0.00011777,2]
[418938824,1774603838129,-1441.39996289,0.00012047,2]
[418938825,1774603838138,-150.58434503,0.00012557,2]
[418938826,1774603838147,-300.0,0.00012657,2]
[418938827,1774603838156,-2125.81652521,0.00012658,2]
[418938828,1774603840573,-336.45937411,0.00012658,2]
[418938829,1774603840584,-1016.53220102,0.00012658,2]
[418938830,1774603841109,-1521.19189966,0.00012658,2]
[418938831,1774603841118,-300.92962121,0.00012658,2]
[418938832,1774603841128,-250.0,0.00012658,2]
[418938833,1774603841138,-250.0,0.00012658,2]
[418938834,1774603841149,-933.4666,0.00012678,2]
[418938835,1774603841159,-2944.4425,0.00012688,2]
[418938836,1774603841168,-150.0,0.00012777,2]
[418938837,1774603841178,-1000.0,0.00012778,2]
[418938838,1774603841188,-150.0,0.000128,2]
[418938839,1774603841198,-300.0,0.00012878,2]
[418938840,1774603841208,-172.0,0.00012878,3]
[418938841,1774603841218,-165.0,0.00012878,3]
[418938842,1774603841229,-616.0,0.00013111,2]
[418938843,1774603841238,-4779.16937913,0.00013514,2]
[418938849,1774603846285,-257.77520014,0.00013514,2]
[418938865,1774603850082,-339.05,0.00013514,2]
[418938877,1774604212070,152.35,7.082e-05,2]
[418938881,1774604946111,-305.0,0.00012677,2]
[418938882,1774604946132,-150.0,0.00012677,2]
[418938883,1774604946154,-3823.1247,0.00012678,2]
[418938884,1774604946175,-947.217675,0.00012876,2]
[418938885,1774604946197,-24145.5943303,0.00012876,2]
[418938886,1774604946219,-953.3145097,0.00012876,2]
[418938887,1774604946241,-172.0,0.00012878,3]
[418938888,1774604946263,-165.0,0.00012878,3]
[418938889,1774604946288,-616.0,0.00013111,2]
[418938890,1774604946310,-6947.7430072,0.00013514,2]
[418938891,1774604946330,-156.86,0.00013811,2]
[418938892,1774604946352,-209.35,0.00013836,2]
[418938893,1774604946373,-296.06,0.00013926,2]
[418938894,1774604946402,-488.79,0.00013926,2]
[418938895,1774604946427,-276.99718525,0.00013945,2]
[418938896,1774604946450,-987.22107327,0.00013945,2]
[418938897,1774604946472,-600.0,0.00013945,2]
[418938898,1774604946494,-600.0,0.00013945,2]
[418938899,1774604946515,-600.0,0.00013945,2]
[418938900,1774604946538,-600.0,0.00013945,2]
[418938901,1774604946560,-180.40183853,0.00013945,2]
[418938902,1774604946582,-259.45,0.00013945,2]
[418938903,1774604946603,-200.0,0.00014095,2]
[418938904,1774604946625,-200.0,0.00014202,2]
[418938905,1774604946646,-488.80444329,0.0001423,2]
[418938906,1774604946668,-238.04,0.00014258,2]
[418938907,1774604946689,-177.36,0.00014266,2]
[418938908,1774604946711,-3240.0,0.00014277,2]
[418938909,1774604946733,-158.4,0.00014277,2]
[418938910,1774604946755,-17181.99723746,0.00014298,2]
[418938911,1774604947091,-1220.15514786,0.00014298,2]
[418938912,1774604947114,-147.27954607,0.000143,2]
[418938929,1774605043497,-2580.7940156,0.00013412,2]
[418938930,1774605043506,-166.66,0.00013541,2]
[418938931,1774605043516,-42.4959844,0.00013826,2]
[418938932,1774605043528,-124.1640156,0.00013826,2]
[418938933,1774605043538,-166.66,0.00014111,2]
[418938934,1774605043547,-263.38298262,0.00014164,2]
[418938941,1774606169146,-151.0,0.00012575,2]
[418938942,1774606169169,-500.0,0.00012575,2]
[418938943,1774606169194,-500.0,0.00012575,2]
[418938944,1774606169216,-352.26956381,0.00012575,2]
[418938945,1774606169239,-617.1939,0.00013111,2]
[418938946,1774606169260,-7289.3356238,0.00013451,2]
[418938947,1774606169283,-1896.158766,0.00013451,2]
[418938948,1774606169305,-2841.653025,0.00013451,2]
[418938949,1774606169325,-10000.0,0.00013691,2]
[418938950,1774606169345,-10000.0,0.00013691,2]
[418938951,1774606169365,-10000.0,0.00013691,2]
[418938952,1774606169388,-9574.08694139,0.00013691,2]
[418938953,1774606205623,100000.0,9.5e-05,3]
[418938954,1774606205651,80893.87931802,9.5e-05,3]
[418938955,1774606232183,-166.0,0.00013691,3]
[418938956,1774606232192,-425.91305861,0.00013691,2]
[418938957,1774606232202,-761.20694139,0.00013691,2]
[418938958,1774606232289,-3133.81943062,0.00013691,2]
[418938969,1774606238542,-1431.05799795,0.00013691,2]
[418938972,1774606243708,-4673.91563004,0.00013691,2]
[418938973,1774606243718,-10000.0,0.00013691,2]
[418938974,1774606243728,-4808.79393624,0.00013691,2]
[418938976,1774606244249,-5191.20606376,0.00013691,2]
[418938977,1774606244259,-8874.0,0.00013691,2]
[418938978,1774606244268,-151.0,0.00013692,2]
[418938979,1774606244278,-151.0,0.00013692,2]
[418938980,1774606244287,-151.0,0.00013692,2]
[418938981,1774606244297,-174.375744,0.00013692,2]
[418938982,1774606244307,-151.0,0.00013699,2]
[418938983,1774606244316,-151.0,0.00013699,2]
[418938984,1774606244325,-260.972648,0.00013699,2]
[418938985,1774606244335,-60111.8928,0.00013754,2]
[418938986,1774606244344,-350.0,0.00013822,3]
[418938987,1774606244353,-250.0,0.00013833,2]
[418938988,1774606244363,-1211.1912,0.00013833,2]
[418938989,1774606244373,-151.0,0.00013854,2]
[418938990,1774606244382,-173.415438,0.00013854,2]
[418938991,1774606244392,-151.0,0.00013854,2]
[418938992,1774606244402,-151.0,0.00013854,2]
[418938993,1774606244411,-151.0,0.00013854,2]
[418938994,1774606244420,-151.0,0.00013854,2]
[418938995,1774606244430,-151.0,0.00013854,2]
[418938996,1774606244439,-151.0,0.00013854,2]
[418938997,1774606244448,-151.0,0.00013854,2]
[418938998,1774606244458,-151.0,0.00013854,2]
[418938999,1774606244467,-151.0,0.00013854,2]
[418939000,1774606244477,-211.760384,0.00013854,2]
[418939001,1774606244487,-151.0,0.00013854,2]
[418939002,1774606244496,-151.0,0.00013854,2]
[418939003,1774606244506,-151.0,0.00013854,2]
[418939004,1774606244515,-151.0,0.00013854,2]
[418939005,1774606244525,-151.0,0.00013854,2]
[418939006,1774606244534,-151.0,0.00013854,2]
[418939007,1774606244543,-151.0,0.00013933,2]
[418939008,1774606244552,-158.1445,0.00013933,2]
[418939009,1774606244562,-151.0,0.00013933,2]
[418939010,1774606244571,-225.21,0.00014,2]
[418939011,1774606244581,-151.0,0.00014002,2]
[418939012,1774606244591,-151.0,0.00014002,2]
[418939013,1774606244600,-151.0,0.00014002,2]
[418939014,1774606244610,-151.0,0.00014002,2]
[418939015,1774606244619,-151.0,0.00014002,2]
[418939016,1774606244629,-151.0,0.00014002,2]
[418939017,1774606244638,-151.0,0.00014002,2]
[418939018,1774606244647,-151.0,0.00014002,2]
[418939019,1774606244656,-188.5,0.00014102,2]
[418939020,1774606244666,-500.0,0.00014108,3]
[418939021,1774606244675,-500.0,0.00014108,2]
[418939022,1774606244684,-500.0,0.00014108,2]
[418939023,1774606244694,-500.0,0.00014108,2]
[418939024,1774606244703,-500.0,0.00014108,2]
[418939025,1774606244712,-500.0,0.00014108,2]
[418939026,1774606244722,-335.81677939,0.00014108,2]
[418939027,1774606244731,-500.0,0.00014108,2]
[418939028,1774606244740,-315.09075326,0.00014108,2]
[418939029,1774606244749,-151.0,0.00014109,2]
[418939030,1774606244758,-151.0,0.00014109,2]
[418939031,1774606244767,-151.0,0.00014109,2]
[418939032,1774606244777,-151.0,0.00014109,2]
[418939033,1774606244787,-151.0,0.00014109,2]
[418939034,1774606244797,-19467.37821764,0.00014109,2]
[418939035,1774606244809,-1265.49916672,0.00014109,2]
[418939036,1774606244819,-35599.56651674,0.00014109,2]
[418939039,1774606246206,-10630.7138989,0.00014109,2]
[418939040,1774606246216,-368.54701738,0.00014164,2]
[418939041,1774606246226,-2789.61718372,0.00014193,2]
[418939057,1774606875919,152.33,7.185e-05,2]
[418939060,1774607345161,-200.0,0.00010959,2]
[418939061,1774607345183,-200.0,0.00010959,2]
[418939062,1774607345204,-90.0,0.00011629,2]
[418939063,1774607351077,-185.38,0.00011629,2]
[418939064,1774607351098,-197.09,0.00013466,2]
[418939065,1774607351119,-500.0,0.00013699,2]
[418939066,1774607351141,-191.964074,0.00013699,2]
[418939070,1774607432679,-308.035926,0.00013699,2]
[418939071,1774607432688,-350.0,0.00014099,2]
[418939072,1774607432698,-87.23936552,0.000141,2]
[418939089,1774607440483,-637.76063448,0.000141,2]
[418939090,1774607440492,-3937.07652734,0.00014101,2]
[418939102,1774607445866,-1239.81049866,0.00014101,2]
[418939103,1774607445875,-1989.3852763,0.00014101,2]
[418939104,1774607445884,-200.0,0.00014108,2]
[418939105,1774607445893,-657.10995,0.0001416,2]
[418939106,1774607445902,-657.10995,0.0001416,2]
[418939107,1774607445911,-657.10995,0.0001416,2]
[418939108,1774607445921,-350.0,0.00014271,2]
[418939109,1774607445930,-2000.0,0.00014277,2]
[418939110,1774607445939,-657.10994,0.000143,2]
[418939111,1774607445948,-657.10995,0.000143,2]
[418939112,1774607445957,-657.10995,0.000143,2]
[418939113,1774607445966,-200.0,0.00014303,2]
[418939114,1774607445976,-209.19,0.00014369,2]
[418939115,1774607445984,-3240.0,0.00014369,2]
[418939116,1774607445994,-150.0,0.00014394,2]
[418939117,1774607446003,-166.66,0.00014396,2]
[418939118,1774607446012,-1500.0,0.000144,2]
[418939119,1774607446021,-1852.42,0.00014458,2]
[418939120,1774607446030,-350.0,0.0001448,2]
[418939121,1774607446039,-2000.0,0.000145,2]
[418939122,1774607446049,-166.66,0.00014681,2]
[418939123,1774607446058,-53.14033433,0.00014681,2]
[418939126,1774608503896,557.86,0.00016,120]
[418939127,1774608561139,-166.66,0.00013777,2]
[418939128,1774608561160,-150.58434503,0.00014026,2]
[418939129,1774608561180,-166.66,0.00014067,2]
[418939130,1774608561200,-51.10165932,0.00014125,2]
[418939143,1774608631714,-248.89834068,0.00014125,2]
[418939144,1774608631723,-1755.37490813,0.00014126,2]
[418939145,1774608631766,-4022.4,0.00014126,2]
[418939146,1774608631822,-1003.5,0.00014126,2]
[418939149,1774608641683,-18676.05164097,0.00014126,2]
[418939150,1774608641692,-1412.8616594,0.00014126,2]
[418939151,1774608641703,-1000.0,0.00014193,2]
[418939152,1774608641712,-1000.0,0.00014193,2]
[418939153,1774608641722,-166.66,0.00014358,2]
[418939154,1774608641731,-578.20924308,0.00014368,2]
[418939155,1774608641740,-151.0,0.00014368,2]
[418939156,1774608641749,-9211.34798985,0.00014368,2]
[418939157,1774608641758,-500.0,0.00014368,2]
[418939158,1774608641768,-500.0,0.00014368,2]
[418939159,1774608641778,-303.8694667,0.00014368,2]
[418939160,1774608641790,-196.1305333,0.00014368,2]
[418939162,1774608641800,-500.0,0.00014368,2]
[418939164,1774608641810,-500.0,0.00014368,2]
[418939166,1774608641820,-151.0,0.00014368,2]
[418939168,1774608641829,-500.0,0.00014368,2]
[418939170,1774608641838,-500.0,0.00014368,2]
[418939172,1774608641848,-250.0,0.00014368,2]
[418939174,1774608641857,-500.0,0.00014368,2]
[418939176,1774608641866,-241.2530119,0.00014368,2]
[418939178,1774608641878,-8.7469881,0.00014368,2]
[418939180,1774608641887,-500.0,0.00014368,2]
[418939181,1774608641896,-250.0,0.00014368,2]
[418939182,1774608641906,-500.0,0.00014368,2]
[418939183,1774608641915,-250.0,0.00014368,2]
[418939184,1774608641925,-500.0,0.00014368,2]
[418939185,1774608641934,-250.0,0.00014368,2]
[418939187,1774608641944,-572.32194508,0.00014368,2]
[418939189,1774608641954,-186.21177918,0.00014368,2]
[418939191,1774608641965,-63.78822082,0.00014368,2]
[418939192,1774608641978,-200.0,0.00014368,2]
[418939194,1774608641987,-174.61919141,0.00014368,2]
[418939196,1774608641997,-743.50770149,0.00014368,2]
[418939198,1774608642006,-194.59067134,0.00014368,2]
[418939200,1774608642015,-627.72684994,0.00014368,2]
[418939202,1774608642026,-40.92500763,0.00014368,2]
[418939204,1774608642036,-201.93286099,0.00014368,2]
[418939206,1774608642045,-279.9045709,0.00014368,2]
[418939208,1774608642054,-500.0,0.00014368,2]
[418939209,1774608642064,-373.37848569,0.00014368,2]
[418939211,1774608642073,-151.0,0.00014423,2]
[418939213,1774608642082,-151.0,0.00014423,2]
[418939215,1774608642092,-151.0,0.00014423,2]
[418939217,1774608642101,-4193.70923472,0.00014423,2]
[418939220,1774608642120,-1534.974,0.00014423,2]
[418939222,1774608642131,-1958.52642,0.00014423,2]
[418939225,1774608642146,-1864.95821075,0.00014423,2]
[418939226,1774608642155,-500.0,0.00014423,2]
[418939227,1774608642164,-151.0,0.00014423,2]
[418939228,1774608642173,-834.04178925,0.00014478,2]
[418939229,1774608642185,-1499.99398211,0.00014478,2]
[418939230,1774608642196,-333.885,0.00014478,2]
[418939231,1774608642207,-4825.73688145,0.00014478,2]
[418939232,1774608642216,-500.0,0.00014478,2]
[418939233,1774608642225,-151.0,0.00014478,2]
[418939234,1774608642234,-2000.0,0.000145,2]
[418939235,1774608642243,-158.4,0.00014514,2]
[418939236,1774608642252,-500.0,0.00014533,2]
[418939237,1774608642261,-151.0,0.00014533,2]
[418939238,1774608642271,-500.0,0.00014564,2]
[418939239,1774608642280,-200.0,0.00014564,2]
[418939240,1774608642289,-500.0,0.00014588,2]
[418939241,1774608642298,-151.0,0.00014588,2]
[418939242,1774608642308,-500.0,0.00014643,2]
[418939243,1774608642317,-151.0,0.00014643,2]
[418939245,1774608642327,-166.66,0.00014648,2]
[418939246,1774608642336,-446.85966567,0.00014681,2]
[418939248,1774608642345,-166.87,0.00014688,2]
[418939250,1774608642354,-500.0,0.00014698,2]
[418939252,1774608642363,-151.0,0.00014698,2]
[418939254,1774608642372,-500.0,0.00014753,2]
[418939255,1774608642381,-151.0,0.00014753,2]
[418939257,1774608642390,-151.0,0.00014782,2]
[418939260,1774608642399,-151.0,0.00014782,2]
[418939261,1774608642408,-151.0,0.00014782,2]
[418939263,1774608642418,-151.0,0.00014782,2]
[418939264,1774608642427,-151.0,0.00014782,2]
[418939265,1774608642436,-151.0,0.00014782,2]
[418939266,1774608642445,-151.0,0.00014782,2]
[418939267,1774608642455,-151.0,0.00014782,2]
[418939268,1774608642464,-150.0,0.00014805,2]
[418939269,1774608642473,-150.0,0.00014805,2]
[418939270,1774608642482,-150.0,0.00014805,2]
[418939271,1774608642491,-150.0,0.00014805,2]
[418939272,1774608642500,-150.0,0.00014805,2]
[418939273,1774608642510,-247.81066208,0.00014805,2]
[418939274,1774608642521,-500.0,0.00014808,2]
[418939275,1774608642531,-151.0,0.00014808,2]
[418939276,1774608642542,-500.0,0.00014863,2]
[418939278,1774608642552,-151.0,0.00014863,2]
[418939280,1774608642562,-151.0,0.00014916,2]
[418939282,1774608642571,-200.0,0.00014916,2]
[418939284,1774608642579,-181.08010149,0.00014916,2]
[418939285,1774608642589,-771.01748645,0.00014916,2]
[418939286,1774608642597,-260.77402837,0.00014916,2]
[418939287,1774608642606,-693.3919763,0.00014916,2]
[418939289,1774608642615,-290.26104003,0.00014916,2]
[418939290,1774608642624,-500.0,0.00014918,2]
[418939291,1774608642633,-151.0,0.00014918,2]
[418939292,1774608642642,-166.66,0.00014938,2]
[418939293,1774608642651,-500.0,0.00014973,2]
[418939294,1774608642660,-151.0,0.00014973,2]
[418939296,1774608642669,-500.0,0.00015,2]
[418939298,1774608642679,-500.0,0.00015,2]
[418939300,1774608642687,-500.0,0.00015,2]
[418939302,1774608642697,-500.0,0.00015,2]
[418939304,1774608642706,-500.0,0.00015,2]
[418939305,1774608642716,-500.0,0.00015,2]
[418939306,1774608642725,-500.0,0.00015,2]
[418939307,1774608642734,-530.74,0.00015,2]
[418939308,1774608642744,-500.0,0.00015,2]
[418939309,1774608642753,-500.0,0.00015,2]
[418939311,1774608642762,-500.0,0.00015,2]
[418939313,1774608642772,-500.0,0.00015,2]
[418939316,1774608642781,-500.0,0.00015,2]
[418939319,1774608642790,-500.0,0.00015,2]
[418939321,1774608642799,-500.0,0.00015,2]
[418939323,1774608642809,-500.0,0.00015,2]
[418939324,1774608642818,-500.0,0.00015,2]
[418939325,1774608642827,-500.0,0.00015,2]
[418939326,1774608642835,-500.0,0.00015,2]
[418939327,1774608642844,-500.0,0.00015,2]
[418939328,1774608642854,-562.67,0.00015,2]
[418939329,1774608642863,-290.22,0.00015,2]
[418939330,1774608642872,-151.0,0.00015,2]
[418939331,1774608642882,-151.0,0.00015,2]
[418939332,1774608642891,-166.76,0.00015012,2]
[418939333,1774608642900,-154.46696213,0.00015062,2]
[418939335,1774608642910,-151.0,0.00015073,2]
[418939336,1774608642919,-151.0,0.00015073,2]
[418939337,1774608642929,-151.0,0.00015073,2]
[418939338,1774608642939,-151.0,0.00015073,2]
[418939339,1774608642948,-151.0,0.00015079,2]
[418939340,1774608642958,-209.19,0.00015088,2]
[418939341,1774608642968,-151.0,0.00015143,2]
[418939342,1774608642978,-4920.20806323,0.00015155,2]
[418939343,1774608642987,-250.0,0.00015155,2]
[418939344,1774608642996,-151.0,0.00015176,2]
[418939345,1774608643005,-220.172216,0.00015176,2]
[418939346,1774608643015,-4164.387,0.00015223,2]
[418939347,1774608643025,-185.47,0.00015223,2]
[418939348,1774608643035,-151.0,0.00015223,2]
[418939349,1774608643044,-221.586796,0.00015223,2]
[418939350,1774608643054,-166.66,0.00015228,2]
[418939351,1774608643064,-509.0,0.00015285,2]
[418939352,1774608643074,-509.0,0.00015292,2]
[418939353,1774608643083,-509.0,0.00015303,2]
[418939354,1774608643093,-3721.0,0.00015408,2]
[418939355,1774608643103,-181.08010148,0.00015464,2]
[418939356,1774608643113,-799.54513345,0.00015464,2]
[418939357,1774608643122,-491.96818442,0.00015464,2]
[418939358,1774608643132,-301.00069851,0.00015464,2]
[418939359,1774608643141,-2091.24,0.00015507,2]
[418939360,1774608643151,-14940.11300296,0.00015521,2]
[418939361,1774608643163,-1762.92910116,0.00015521,2]
[418939362,1774608643175,-1988.19768892,0.00015521,2]
[418939363,1774608643184,-166.245003,0.00015539,7]
[418939364,1774608643194,-235.122781,0.00015539,7]
[418939365,1774608643204,-151.0,0.00015543,2]
[418939366,1774608643215,-2070.7976067,0.00015543,2]
[418939367,1774608643227,-56.2023933,0.00015543,2]
[418939368,1774608643236,-218.907416,0.00015582,7]
[418939369,1774608643246,-1500.0,0.000156,5]
[418939370,1774608643256,-379.30295136,0.00015611,2]
[418939371,1774608643267,-129.69704864,0.00015611,2]
[418939372,1774608643276,-509.0,0.00015611,2]
[418939373,1774608643286,-151.0,0.00015612,2]
[418939374,1774608643296,-151.0,0.00015612,2]
[418939375,1774608643305,-422.88395274,0.00015612,2]
[418939376,1774608643315,-509.0,0.00015624,2]
[418939377,1774608643325,-1587.32837207,0.00015634,2]
[418939378,1774608643334,-509.0,0.00015643,2]
[418939379,1774608643344,-2127.0,0.00015647,2]
[418939380,1774608643353,-509.0,0.00015651,2]
[418939381,1774608643363,-509.0,0.00015667,2]
[418939382,1774608643372,-225.13,0.00015678,2]
[418939383,1774608643381,-258.273485,0.0001568,7]
[418939384,1774608643391,-509.0,0.00015689,2]
[418939385,1774608643403,-509.0,0.00015697,2]
[418939386,1774608643414,-3000.0,0.000157,5]
[418939387,1774608643424,-509.0,0.00015712,2]
[418939388,1774608643433,-509.0,0.00015725,2]
[418939389,1774608643442,-509.0,0.00015728,2]
[418939390,1774608643452,-59.42679632,0.00015758,2]
[418939391,1774608643463,-449.57320368,0.00015758,2]
[418939393,1774608643473,-509.0,0.00015779,2]
[418939394,1774608643482,-509.0,0.00015789,2]
[418939395,1774608643491,-165.13,0.0001579,3]
[418939396,1774608643500,-509.0,0.00015793,2]
[418939397,1774608643509,-500.0,0.00015799,2]
[418939398,1774608643519,-1000.0,0.000158,2]
[418939399,1774608643529,-151.0,0.000158,2]
[418939400,1774608643539,-4500.0,0.000158,5]
[418939401,1774608643548,-209.19,0.00015806,2]
[418939402,1774608643558,-509.0,0.00015814,2]
[418939403,1774608643568,-509.0,0.00015822,2]
[418939404,1774608643578,-3721.0,0.00015823,2]
[418939405,1774608643588,-447.46803516,0.00015844,2]
[418939406,1774608643600,-61.53196484,0.00015844,2]
[418939407,1774608643609,-330.05230745,0.0001589,2]
[418939408,1774608643622,-1669.94769255,0.0001589,2]
[418939409,1774608643632,-2091.24,0.00015895,2]
[418939410,1774608643642,-301.13225467,0.00015899,2]
[418939411,1774608643654,-198.86774533,0.00015899,2]
[418939412,1774608643664,-600.08214096,0.000159,2]
[418939413,1774608643674,-5000.0,0.000159,2]
[418939414,1774608643684,-534.3331334,0.000159,2]
[418939415,1774608643694,-6063.06118178,0.000159,2]
[418939416,1774608643734,-17724.07645234,0.000159,2]
[418939417,1774608643744,-6100.0,0.000159,5]
[418939418,1774608643754,-199.47320477,0.000159,2]
[418939419,1774608643764,-815.52969231,0.000159,2]
[418939420,1774608643773,-5680.2973498,0.00015915,2]
[418939421,1774608643783,-150.0,0.00015939,7]
[418939422,1774608643792,-6168.92467478,0.00015956,2]
[418939423,1774608643878,-3685.58981507,0.00015956,2]
[418939424,1774608643889,-155.41458192,0.00015956,2]
[418939425,1774608643899,-163.0,0.00015973,2]
[418939426,1774608643909,-184.0,0.00015973,2]
[418939427,1774608643918,-500.0,0.00015973,2]
[418939428,1774608643928,-2024.71833637,0.00015988,2]
[418939429,1774608643941,-35.40440094,0.00015988,2]
[418939430,1774608643951,-500.0,0.00015989,2]
[418939431,1774608643961,-500.0,0.00015989,2]
[418939432,1774608643971,-500.0,0.00015989,2]
[418939433,1774608643980,-500.0,0.00015989,2]
[418939434,1774608643989,-4684.59559906,0.0001599,2]
[418939435,1774608644012,-1596.60213788,0.0001599,2]
[418939436,1774608644059,-738.92797122,0.0001599,2]
[418939437,1774608644078,-280.39957582,0.0001599,2]
[418939438,1774608644089,-11284.85586681,0.0001599,2]
[418939472,1774608645794,-3523.47884921,0.0001599,2]
[418939473,1774608645805,-22108.86,0.0001599,2]
[418939474,1774608645814,-920.94502074,0.0001599,2]
[418939475,1774608645824,-155.0,0.00015999,2]
[418939476,1774608645834,-500.0,0.00015999,2]
[418939477,1774608645844,-500.0,0.00015999,2]
[418939478,1774608645854,-500.0,0.00015999,2]
[418939479,1774608645864,-434.06032538,0.00015999,2]
[418939480,1774608645873,-500.0,0.00015999,2]
[418939481,1774608645883,-500.0,0.00015999,2]
[418939482,1774608645892,-500.0,0.00015999,2]
[418939483,1774608645902,-500.0,0.00015999,2]
[418939484,1774608645911,-404.583726,0.00015999,2]
[418939485,1774608645922,-500.0,0.00015999,2]
[418939486,1774608645931,-500.0,0.00015999,2]
[418939487,1774608645942,-500.0,0.00015999,2]
[418939488,1774608645951,-500.0,0.00015999,2]
[418939489,1774608645961,-500.0,0.00015999,2]
[418939490,1774608645970,-500.0,0.00015999,2]
[418939491,1774608645979,-500.0,0.00015999,2]
[418939492,1774608645988,-500.0,0.00015999,2]
[418939493,1774608645998,-500.0,0.00015999,2]
[418939494,1774608646008,-353.52037858,0.00015999,2]
[418939495,1774608646017,-604.69379399,0.00015999,2]
[418939496,1774608646026,-231.39079921,0.00015999,2]
[418939497,1774608646036,-500.0,0.00015999,2]
[418939498,1774608646045,-529.54516678,0.00015999,2]
[418939499,1774608646054,-500.0,0.00015999,2]
[418939500,1774608646064,-500.0,0.00015999,2]
[418939501,1774608646073,-500.0,0.00015999,2]
[418939502,1774608646082,-280.91918669,0.00015999,2]
[418939503,1774608646092,-573.0,0.00016,5]
[418939504,1774608646101,-1075.0,0.00016,5]
[418939505,1774608646111,-463.96883349,0.00016,2]
[418939506,1774608646121,-1185.0,0.00016,5]
[418939507,1774608646130,-1321686.44711513,0.00016,2]
[418939508,1774608646140,-780.59,0.00016,2]
[418939509,1774608646150,-2172.56,0.00016,2]
[418939510,1774608646159,-1739.92,0.00016,2]
[418939511,1774608646169,-1584.83,0.00016,2]